[Event "Titled Tuesday Blitz June 27 Late 2023"]
[White "Ng, Matthew K"]
[Black "Winkels, Marcel"]
[WhiteFideId "2094371"]
[BlackFideId "1003887"]
[WhiteElo "2008"]
[BlackElo "2069"]
[Result "1-0"]
[Round "10"]
[TimeControl "180+2"]
[Date "2023.06.27"]
[WhiteClock "0:00:18"]
[BlackClock "0:00:00"]
[Board "112"]

1. e4 {[%clk 0:02:59]}  c5 {[%clk 0:03:00]} 2. Nf3 {[%clk 0:02:58]}  d6 {[%clk 0:02:59]} 3. g3 {[%clk 0:02:58]}  Nc6 {[%clk 0:02:57]} 4. Bg2 {[%clk 0:02:58]}  g6 {[%clk 0:02:58]} 5. O-O {[%clk 0:02:57]}  Bg7 {[%clk 0:02:58]} 6. c3 {[%clk 0:02:57]}  e5 {[%clk 0:02:59]} 7. d3 {[%clk 0:02:53]}  Nge7 {[%clk 0:02:58]} 8. Be3 {[%clk 0:02:48]}  O-O {[%clk 0:02:56]} 9. d4 {[%clk 0:02:40]}  cxd4 {[%clk 0:02:54]} 10. cxd4 {[%clk 0:02:41]}  Bg4 {[%clk 0:02:49]} 11. d5 {[%clk 0:02:36]}  Nd4 {[%clk 0:02:38]} 12. Bxd4 {[%clk 0:02:25]}  exd4 {[%clk 0:02:38]} 13. Qd3 {[%clk 0:02:23]}  Qb6 {[%clk 0:02:32]} 14. b3 {[%clk 0:02:20]}  Rac8 {[%clk 0:02:19]} 15. h3 {[%clk 0:02:13]}  Bxf3 {[%clk 0:02:14]} 16. Bxf3 {[%clk 0:02:13]}  f5 {[%clk 0:02:02]} 17. Nd2 {[%clk 0:01:51]}  Rc3 {[%clk 0:02:00]} 18. Qe2 {[%clk 0:01:50]}  Rfc8 {[%clk 0:01:49]} 19. Nc4 {[%clk 0:01:46]}  Qd8 {[%clk 0:01:39]} 20. Rad1 {[%clk 0:01:45]}  b5 {[%clk 0:01:31]} 21. Nd2 {[%clk 0:01:39]}  Qf8 {[%clk 0:01:17]} 22. Qxb5 {[%clk 0:01:35]}  Bh6 {[%clk 0:00:54]} 23. Bg2 {[%clk 0:01:21]}  Rc2 {[%clk 0:00:51]} 24. Nc4 {[%clk 0:01:19]}  Rd8 {[%clk 0:00:27]} 25. Rxd4 {[%clk 0:01:15]}  Bg7 {[%clk 0:00:25]} 26. Rd2 {[%clk 0:01:12]}  Rxd2 {[%clk 0:00:23]} 27. Nxd2 {[%clk 0:01:12]}  Bd4 {[%clk 0:00:16]} 28. Qa4 {[%clk 0:01:05]}  f4 {[%clk 0:00:15]} 29. Qxd4 {[%clk 0:01:04]}  fxg3 {[%clk 0:00:15]} 30. fxg3 {[%clk 0:01:04]}  Qe8 {[%clk 0:00:11]} 31. Qf6 {[%clk 0:01:01]}  Nc8 {[%clk 0:00:10]} 32. Nc4 {[%clk 0:00:58]}  Qd7 {[%clk 0:00:08]} 33. e5 {[%clk 0:00:51]}  dxe5 {[%clk 0:00:07]} 34. Nxe5 {[%clk 0:00:51]}  Qd6 {[%clk 0:00:07]} 35. Qxd6 {[%clk 0:00:48]}  Nxd6 {[%clk 0:00:07]} 36. Nc6 {[%clk 0:00:42]}  Re8 {[%clk 0:00:06]} 37. Nxa7 {[%clk 0:00:41]}  Re2 {[%clk 0:00:05]} 38. a4 {[%clk 0:00:41]}  Rb2 {[%clk 0:00:04]} 39. Rf3 {[%clk 0:00:37]}  Nf5 {[%clk 0:00:02]} 40. Rc3 {[%clk 0:00:35]}  Nd4 {[%clk 0:00:02]} 41. Nc6 {[%clk 0:00:33]}  Ne2+ {[%clk 0:00:02]} 42. Kh2 {[%clk 0:00:32]}  Nxc3 {[%clk 0:00:02]} 43. d6 {[%clk 0:00:32]}  Rd2 {[%clk 0:00:02]} 44. a5 {[%clk 0:00:25]}  Rxd6 {[%clk 0:00:02]} 45. a6 {[%clk 0:00:23]}  Nb5 {[%clk 0:00:03]} 46. b4 {[%clk 0:00:22]}  Rd7 {[%clk 0:00:02]} 47. Ne5 {[%clk 0:00:19]}  Re7 {[%clk 0:00:02]} 48. Bd5+ {[%clk 0:00:19]}  Kg7 {[%clk 0:00:02]} 49. Nc6 {[%clk 0:00:19]}  Rd7 {[%clk 0:00:00]} 50. Bc4 {[%clk 0:00:18]} 1-0


[Site "https://www.chess.com"]

[Event "Titled Tuesday Blitz June 27 Late 2023"]
[White "Bortnyk, Olexandr"]
[Black "Martinez Alcantara, Jose Eduardo"]
[WhiteFideId "14120828"]
[BlackFideId "3805662"]
[WhiteElo "3026"]
[BlackElo "3040"]
[Result "1/2-1/2"]
[Round "11"]
[TimeControl "180+2"]
[Date "2023.06.27"]
[WhiteClock "0:01:42"]
[BlackClock "0:02:47"]
[Board "1"]

1. e4 {[%clk 0:02:59]}  c5 {[%clk 0:03:00]} 2. Be2 {[%clk 0:02:54]}  Nc6 {[%clk 0:02:59]} 3. d3 {[%clk 0:02:54]}  g6 {[%clk 0:02:59]} 4. f4 {[%clk 0:02:54]}  Bg7 {[%clk 0:03:00]} 5. Nf3 {[%clk 0:02:55]}  d6 {[%clk 0:03:01]} 6. c3 {[%clk 0:02:55]}  e6 {[%clk 0:03:01]} 7. Be3 {[%clk 0:02:55]}  Nf6 {[%clk 0:03:01]} 8. O-O {[%clk 0:02:52]}  O-O {[%clk 0:03:00]} 9. Kh1 {[%clk 0:02:53]}  b6 {[%clk 0:03:00]} 10. Nbd2 {[%clk 0:02:53]}  Bb7 {[%clk 0:03:00]} 11. d4 {[%clk 0:02:44]}  cxd4 {[%clk 0:03:00]} 12. cxd4 {[%clk 0:02:45]}  a6 {[%clk 0:02:58]} 13. a3 {[%clk 0:02:40]}  b5 {[%clk 0:02:56]} 14. Qe1 {[%clk 0:02:33]}  Rc8 {[%clk 0:02:53]} 15. Qh4 {[%clk 0:02:29]}  Ne7 {[%clk 0:02:46]} 16. Bd3 {[%clk 0:01:42]}  d5 {[%clk 0:02:47]} 1/2-1/2


[Site "https://www.chess.com"]

[Event "Titled Tuesday Blitz June 27 Late 2023"]
[White "Zhigalko, Sergei"]
[Black "Pranesh M"]
[WhiteFideId "13502956"]
[BlackFideId "35028600"]
[WhiteElo "2906"]
[BlackElo "3034"]
[Result "0-1"]
[Round "11"]
[TimeControl "180+2"]
[Date "2023.06.27"]
[WhiteClock "0:00:00"]
[BlackClock "0:01:30"]
[Board "4"]

1. e4 {[%clk 0:03:00]}  e5 {[%clk 0:02:59]} 2. Nf3 {[%clk 0:03:01]}  Nc6 {[%clk 0:03:00]} 3. Bc4 {[%clk 0:03:01]}  Nf6 {[%clk 0:03:00]} 4. d3 {[%clk 0:03:02]}  Bc5 {[%clk 0:03:00]} 5. O-O {[%clk 0:03:02]}  O-O {[%clk 0:03:01]} 6. Nbd2 {[%clk 0:03:03]}  a6 {[%clk 0:03:00]} 7. c3 {[%clk 0:03:03]}  h6 {[%clk 0:03:00]} 8. Bb3 {[%clk 0:03:02]}  d6 {[%clk 0:03:00]} 9. h3 {[%clk 0:03:01]}  Be6 {[%clk 0:03:00]} 10. Re1 {[%clk 0:03:01]}  Ba7 {[%clk 0:02:54]} 11. Nf1 {[%clk 0:02:59]}  Ne7 {[%clk 0:02:52]} 12. Ng3 {[%clk 0:02:47]}  Ng6 {[%clk 0:02:52]} 13. Bxe6 {[%clk 0:02:41]}  fxe6 {[%clk 0:02:53]} 14. d4 {[%clk 0:02:42]}  Qe7 {[%clk 0:02:49]} 15. Be3 {[%clk 0:02:42]}  Kh7 {[%clk 0:02:44]} 16. Qb3 {[%clk 0:02:36]}  exd4 {[%clk 0:02:32]} 17. cxd4 {[%clk 0:02:36]}  c6 {[%clk 0:02:32]} 18. Rad1 {[%clk 0:02:16]}  d5 {[%clk 0:02:31]} 19. Bc1 {[%clk 0:02:00]}  Qf7 {[%clk 0:02:28]} 20. Re2 {[%clk 0:01:30]}  Rad8 {[%clk 0:02:25]} 21. Rde1 {[%clk 0:01:29]}  Kh8 {[%clk 0:02:17]} 22. Qc2 {[%clk 0:01:08]}  dxe4 {[%clk 0:02:10]} 23. Nxe4 {[%clk 0:01:09]}  Nd5 {[%clk 0:02:10]} 24. Ne5 {[%clk 0:00:56]}  Nxe5 {[%clk 0:02:09]} 25. dxe5 {[%clk 0:00:57]}  Nb4 {[%clk 0:01:58]} 26. Qb3 {[%clk 0:00:45]}  Nd3 {[%clk 0:01:59]} 27. Rf1 {[%clk 0:00:38]}  Nxe5 {[%clk 0:01:52]} 28. Be3 {[%clk 0:00:35]}  Rd3 {[%clk 0:01:49]} 29. Bxa7 {[%clk 0:00:05]}  Rxb3 {[%clk 0:01:48]} 30. axb3 {[%clk 0:00:06]}  Qg6 {[%clk 0:01:44]} 31. Kh1 {[%clk 0:00:06]}  Nd3 {[%clk 0:01:44]} 32. f3 {[%clk 0:00:03]}  Kh7 {[%clk 0:01:41]} 33. Rd2 {[%clk 0:00:02]}  Nf4 {[%clk 0:01:38]} 34. Be3 {[%clk 0:00:02]}  Nd5 {[%clk 0:01:38]} 35. Bd4 {[%clk 0:00:03]}  Qf5 {[%clk 0:01:32]} 36. Re1 {[%clk 0:00:03]}  Qf4 {[%clk 0:01:32]} 37. Rde2 {[%clk 0:00:03]}  e5 {[%clk 0:01:32]} 38. Bf2 {[%clk 0:00:02]}  Qf5 {[%clk 0:01:31]} 39. Ng3 {[%clk 0:00:01]}  Qd3 {[%clk 0:01:30]} 40. Rxe5 {[%clk 0:00:00]}  Qxb3 {[%clk 0:01:30]} 0-1


[Site "https://www.chess.com"]

[Event "Titled Tuesday Blitz June 27 Late 2023"]
[White "Naroditsky, Daniel"]
[Black "Sjugirov, Sanan"]
[WhiteFideId "2026961"]
[BlackFideId "4189302"]
[WhiteElo "3092"]
[BlackElo "2946"]
[Result "1/2-1/2"]
[Round "11"]
[TimeControl "180+2"]
[Date "2023.06.27"]
[WhiteClock "0:00:05"]
[BlackClock "0:00:02"]
[Board "7"]

1. e4 {[%clk 0:03:00]}  c5 {[%clk 0:02:59]} 2. c3 {[%clk 0:03:00]}  Nf6 {[%clk 0:02:57]} 3. e5 {[%clk 0:03:00]}  Nd5 {[%clk 0:02:58]} 4. Nf3 {[%clk 0:03:01]}  d6 {[%clk 0:02:57]} 5. d4 {[%clk 0:03:02]}  cxd4 {[%clk 0:02:57]} 6. cxd4 {[%clk 0:03:01]}  dxe5 {[%clk 0:02:57]} 7. dxe5 {[%clk 0:02:56]}  Nc6 {[%clk 0:02:56]} 8. Bc4 {[%clk 0:02:56]}  Be6 {[%clk 0:02:55]} 9. O-O {[%clk 0:02:56]}  g6 {[%clk 0:02:54]} 10. Qe2 {[%clk 0:02:57]}  Bg7 {[%clk 0:02:54]} 11. Rd1 {[%clk 0:02:58]}  Qa5 {[%clk 0:02:32]} 12. Bd2 {[%clk 0:02:21]}  Qb6 {[%clk 0:02:13]} 13. Nc3 {[%clk 0:02:21]}  Nxc3 {[%clk 0:02:06]} 14. Bxc3 {[%clk 0:02:22]}  Bxc4 {[%clk 0:02:06]} 15. Qxc4 {[%clk 0:02:23]}  O-O {[%clk 0:02:03]} 16. e6 {[%clk 0:02:14]}  f5 {[%clk 0:01:52]} 17. Bxg7 {[%clk 0:02:03]}  Kxg7 {[%clk 0:01:53]} 18. Qc3+ {[%clk 0:02:03]}  Kg8 {[%clk 0:01:24]} 19. Rd7 {[%clk 0:02:03]}  Rae8 {[%clk 0:01:05]} 20. Ng5 {[%clk 0:01:30]}  Nd8 {[%clk 0:00:23]} 21. Re1 {[%clk 0:01:23]}  h6 {[%clk 0:00:17]} 22. Nf3 {[%clk 0:01:20]}  Nxe6 {[%clk 0:00:04]} 23. Qc4 {[%clk 0:01:14]}  Rf6 {[%clk 0:00:05]} 24. Nd4 {[%clk 0:01:10]}  Kf7 {[%clk 0:00:03]} 25. a4 {[%clk 0:00:36]}  Qa6 {[%clk 0:00:03]} 26. Qb3 {[%clk 0:00:30]}  Qb6 {[%clk 0:00:03]} 27. Qc4 {[%clk 0:00:27]}  Qa6 {[%clk 0:00:04]} 28. Qd5 {[%clk 0:00:16]}  Rc8 {[%clk 0:00:03]} 29. h4 {[%clk 0:00:13]}  Qc4 {[%clk 0:00:03]} 30. Qxb7 {[%clk 0:00:05]}  Rc7 {[%clk 0:00:03]} 31. Rxc7 {[%clk 0:00:04]}  Qxc7 {[%clk 0:00:03]} 32. Qb3 {[%clk 0:00:03]}  Qb6 {[%clk 0:00:03]} 33. Qxb6 {[%clk 0:00:02]}  axb6 {[%clk 0:00:04]} 34. Nb5 {[%clk 0:00:02]}  Nc5 {[%clk 0:00:04]} 35. Nc3 {[%clk 0:00:02]}  Rd6 {[%clk 0:00:04]} 36. b4 {[%clk 0:00:02]}  Nd3 {[%clk 0:00:04]} 37. Rb1 {[%clk 0:00:03]}  Rd4 {[%clk 0:00:04]} 38. a5 {[%clk 0:00:02]}  bxa5 {[%clk 0:00:03]} 39. bxa5 {[%clk 0:00:03]}  Rc4 {[%clk 0:00:04]} 40. Rb3 {[%clk 0:00:03]}  Nc5 {[%clk 0:00:04]} 41. Ra3 {[%clk 0:00:03]}  Na6 {[%clk 0:00:05]} 42. g3 {[%clk 0:00:03]}  Ke6 {[%clk 0:00:05]} 43. Ne2 {[%clk 0:00:03]}  g5 {[%clk 0:00:05]} 44. hxg5 {[%clk 0:00:04]}  hxg5 {[%clk 0:00:05]} 45. Kg2 {[%clk 0:00:03]}  Kd5 {[%clk 0:00:05]} 46. Rd3+ {[%clk 0:00:04]}  Ke5 {[%clk 0:00:05]} 47. Re3+ {[%clk 0:00:03]}  Kf6 {[%clk 0:00:05]} 48. Nc3 {[%clk 0:00:03]}  Rc5 {[%clk 0:00:05]} 49. g4 {[%clk 0:00:03]}  Rxa5 {[%clk 0:00:04]} 50. gxf5 {[%clk 0:00:03]}  Rxf5 {[%clk 0:00:05]} 51. Ne4+ {[%clk 0:00:04]}  Kf7 {[%clk 0:00:05]} 52. Ng3 {[%clk 0:00:03]}  Rf6 {[%clk 0:00:05]} 53. Re5 {[%clk 0:00:03]}  g4 {[%clk 0:00:05]} 54. Rg5 {[%clk 0:00:03]}  Rg6 {[%clk 0:00:05]} 55. Rf5+ {[%clk 0:00:03]}  Rf6 {[%clk 0:00:05]} 56. Rg5 {[%clk 0:00:04]}  Rg6 {[%clk 0:00:06]} 57. Rf5+ {[%clk 0:00:04]}  Ke6 {[%clk 0:00:06]} 58. Rb5 {[%clk 0:00:04]}  Nc7 {[%clk 0:00:05]} 59. Ra5 {[%clk 0:00:03]}  Nd5 {[%clk 0:00:05]} 60. Ne2 {[%clk 0:00:03]}  Rg5 {[%clk 0:00:04]} 61. Kg3 {[%clk 0:00:03]}  Re5 {[%clk 0:00:03]} 62. Nd4+ {[%clk 0:00:02]}  Kf7 {[%clk 0:00:03]} 63. Ra4 {[%clk 0:00:01]}  Re4 {[%clk 0:00:02]} 64. Rc4 {[%clk 0:00:01]}  Nb6 {[%clk 0:00:03]} 65. Rb4 {[%clk 0:00:01]}  Nd7 {[%clk 0:00:03]} 66. f3 {[%clk 0:00:01]}  gxf3 {[%clk 0:00:03]} 67. Kxf3 {[%clk 0:00:02]}  Rh4 {[%clk 0:00:02]} 68. Nc2 {[%clk 0:00:02]}  Ne5+ {[%clk 0:00:02]} 69. Kg3 {[%clk 0:00:02]}  Rh8 {[%clk 0:00:02]} 70. Re4 {[%clk 0:00:03]}  Nc6 {[%clk 0:00:01]} 71. Ne3 {[%clk 0:00:03]}  e5 {[%clk 0:00:02]} 72. Rc4 {[%clk 0:00:03]}  Ne7 {[%clk 0:00:01]} 73. Rc7 {[%clk 0:00:03]}  Ke6 {[%clk 0:00:02]} 74. Kf3 {[%clk 0:00:02]}  Rf8+ {[%clk 0:00:02]} 75. Ke2 {[%clk 0:00:03]}  Rd8 {[%clk 0:00:02]} 76. Ra7 {[%clk 0:00:03]}  Rd6 {[%clk 0:00:02]} 77. Ra5 {[%clk 0:00:03]}  Nc6 {[%clk 0:00:02]} 78. Ra8 {[%clk 0:00:03]}  Nd4+ {[%clk 0:00:03]} 79. Kd3 {[%clk 0:00:04]}  Nf5+ {[%clk 0:00:03]} 80. Ke2 {[%clk 0:00:04]}  Nxe3 {[%clk 0:00:02]} 81. Kxe3 {[%clk 0:00:05]}  Kd5 {[%clk 0:00:02]} 82. Ra5+ {[%clk 0:00:05]}  Ke6 {[%clk 0:00:02]} 83. Ra4 {[%clk 0:00:05]} 1/2-1/2


[Site "https://www.chess.com"]

[Event "Titled Tuesday Blitz June 27 Late 2023"]
[White "Chigaev, Maksim"]
[Black "Sargsyan, Shant"]
[WhiteFideId "4108116"]
[BlackFideId "13306766"]
[WhiteElo "2918"]
[BlackElo "3019"]
[Result "1-0"]
[Round "11"]
[TimeControl "180+2"]
[Date "2023.06.27"]
[WhiteClock "0:00:16"]
[BlackClock "0:00:05"]
[Board "8"]

1. e4 {[%clk 0:03:00]}  g6 {[%clk 0:02:59]} 2. d4 {[%clk 0:02:59]}  Nf6 {[%clk 0:02:59]} 3. Nc3 {[%clk 0:02:57]}  d5 {[%clk 0:02:59]} 4. e5 {[%clk 0:02:58]}  Ne4 {[%clk 0:02:59]} 5. h4 {[%clk 0:02:58]}  Nxc3 {[%clk 0:02:56]} 6. bxc3 {[%clk 0:02:59]}  c5 {[%clk 0:02:56]} 7. h5 {[%clk 0:02:58]}  Bg7 {[%clk 0:02:56]} 8. h6 {[%clk 0:02:40]}  Bf8 {[%clk 0:02:55]} 9. Nf3 {[%clk 0:02:37]}  Nc6 {[%clk 0:02:55]} 10. Rb1 {[%clk 0:02:34]}  Qa5 {[%clk 0:02:55]} 11. Bd2 {[%clk 0:02:34]}  c4 {[%clk 0:02:56]} 12. Be2 {[%clk 0:02:21]}  f6 {[%clk 0:02:52]} 13. O-O {[%clk 0:02:18]}  b6 {[%clk 0:02:42]} 14. Re1 {[%clk 0:02:16]}  Kf7 {[%clk 0:02:37]} 15. Nh4 {[%clk 0:01:53]}  Nd8 {[%clk 0:02:06]} 16. Bf3 {[%clk 0:01:37]}  Be6 {[%clk 0:01:57]} 17. a4 {[%clk 0:01:34]}  Qxa4 {[%clk 0:01:39]} 18. exf6 {[%clk 0:01:34]}  exf6 {[%clk 0:01:40]} 19. Rxe6 {[%clk 0:01:34]}  Nxe6 {[%clk 0:01:38]} 20. Bxd5 {[%clk 0:01:35]}  Rd8 {[%clk 0:01:39]} 21. Qf3 {[%clk 0:01:32]}  Bd6 {[%clk 0:01:07]} 22. Bg5 {[%clk 0:01:14]}  Be7 {[%clk 0:00:44]} 23. Re1 {[%clk 0:00:25]}  Rd6 {[%clk 0:00:42]} 24. Bf4 {[%clk 0:00:20]}  Rhd8 {[%clk 0:00:20]} 25. Bxd6 {[%clk 0:00:20]}  Rxd6 {[%clk 0:00:21]} 26. Nf5 {[%clk 0:00:20]}  gxf5 {[%clk 0:00:18]} 27. Qxf5 {[%clk 0:00:20]}  Qd7 {[%clk 0:00:07]} 28. Qxh7+ {[%clk 0:00:20]}  Kf8 {[%clk 0:00:06]} 29. Bxe6 {[%clk 0:00:15]}  Rxe6 {[%clk 0:00:06]} 30. Qg7+ {[%clk 0:00:16]}  Ke8 {[%clk 0:00:05]} 31. Qg8+ {[%clk 0:00:16]} 1-0


[Site "https://www.chess.com"]

[Event "Titled Tuesday Blitz June 27 Late 2023"]
[White "Horvath, Dominik"]
[Black "Andreikin, Dmitry"]
[WhiteFideId "1642561"]
[BlackFideId "4158814"]
[WhiteElo "2910"]
[BlackElo "3016"]
[Result "1/2-1/2"]
[Round "11"]
[TimeControl "180+2"]
[Date "2023.06.27"]
[WhiteClock "0:01:25"]
[BlackClock "0:00:21"]
[Board "9"]

1. f4 {[%clk 0:02:59]}  b6 {[%clk 0:02:59]} 2. Nf3 {[%clk 0:02:55]}  Bb7 {[%clk 0:02:59]} 3. e3 {[%clk 0:02:55]}  Nf6 {[%clk 0:02:58]} 4. g3 {[%clk 0:02:56]}  g5 {[%clk 0:02:52]} 5. Bg2 {[%clk 0:02:54]}  g4 {[%clk 0:02:46]} 6. Nh4 {[%clk 0:02:54]}  Bxg2 {[%clk 0:02:46]} 7. Nxg2 {[%clk 0:02:55]}  h5 {[%clk 0:02:43]} 8. b3 {[%clk 0:02:54]}  Bg7 {[%clk 0:02:37]} 9. Bb2 {[%clk 0:02:55]}  e6 {[%clk 0:02:37]} 10. Na3 {[%clk 0:02:55]}  d5 {[%clk 0:02:36]} 11. Qe2 {[%clk 0:02:54]}  c5 {[%clk 0:02:31]} 12. O-O-O {[%clk 0:02:54]}  Nc6 {[%clk 0:02:31]} 13. Nh4 {[%clk 0:02:51]}  Qd7 {[%clk 0:02:26]} 14. Kb1 {[%clk 0:02:49]}  O-O-O {[%clk 0:02:25]} 15. Qa6+ {[%clk 0:02:49]}  Qb7 {[%clk 0:02:20]} 16. Qe2 {[%clk 0:02:50]}  d4 {[%clk 0:02:15]} 17. e4 {[%clk 0:02:45]}  d3 {[%clk 0:02:03]} 18. cxd3 {[%clk 0:02:44]}  Nb4 {[%clk 0:02:03]} 19. e5 {[%clk 0:02:24]}  Nfd5 {[%clk 0:01:55]} 20. d4 {[%clk 0:02:24]}  cxd4 {[%clk 0:01:52]} 21. Bxd4 {[%clk 0:02:24]}  Kb8 {[%clk 0:01:33]} 22. Bb2 {[%clk 0:02:24]}  Bf8 {[%clk 0:01:26]} 23. Rhf1 {[%clk 0:02:21]}  Rc8 {[%clk 0:01:18]} 24. Nc4 {[%clk 0:02:19]}  Qa6 {[%clk 0:01:15]} 25. a3 {[%clk 0:02:19]}  Nc6 {[%clk 0:01:12]} 26. Qe4 {[%clk 0:02:19]}  Na5 {[%clk 0:01:04]} 27. Nxa5 {[%clk 0:02:14]}  Qxa5 {[%clk 0:01:05]} 28. Qa4 {[%clk 0:02:08]}  Qxa4 {[%clk 0:01:04]} 29. bxa4 {[%clk 0:02:07]}  Be7 {[%clk 0:01:04]} 30. Ng2 {[%clk 0:02:06]}  Rc4 {[%clk 0:00:59]} 31. Ne3 {[%clk 0:02:03]}  Nxe3 {[%clk 0:00:59]} 32. dxe3 {[%clk 0:02:03]}  Rd8 {[%clk 0:00:40]} 33. Rxd8+ {[%clk 0:01:59]}  Bxd8 {[%clk 0:00:41]} 34. h3 {[%clk 0:02:00]}  Rxa4 {[%clk 0:00:31]} 35. hxg4 {[%clk 0:01:58]}  hxg4 {[%clk 0:00:32]} 36. Rh1 {[%clk 0:01:59]}  Be7 {[%clk 0:00:31]} 37. Kc2 {[%clk 0:01:58]}  Bc5 {[%clk 0:00:27]} 38. Rh7 {[%clk 0:01:40]}  Bxe3 {[%clk 0:00:27]} 39. Rxf7 {[%clk 0:01:40]}  Bf2 {[%clk 0:00:25]} 40. f5 {[%clk 0:01:38]}  exf5 {[%clk 0:00:25]} 41. e6 {[%clk 0:01:38]}  Re4 {[%clk 0:00:25]} 42. e7 {[%clk 0:01:34]}  Kc8 {[%clk 0:00:25]} 43. Rf8+ {[%clk 0:01:21]}  Kd7 {[%clk 0:00:24]} 44. Bf6 {[%clk 0:01:22]}  Rxe7 {[%clk 0:00:22]} 45. Bxe7 {[%clk 0:01:22]}  Kxe7 {[%clk 0:00:23]} 46. Rxf5 {[%clk 0:01:23]}  Bxg3 {[%clk 0:00:22]} 47. Rg5 {[%clk 0:01:23]}  Bd6 {[%clk 0:00:21]} 48. Rxg4 {[%clk 0:01:23]}  Bxa3 {[%clk 0:00:21]} 49. Ra4 {[%clk 0:01:24]}  Bc5 {[%clk 0:00:21]} 50. Rxa7+ {[%clk 0:01:24]}  Kd6 {[%clk 0:00:21]} 51. Rb7 {[%clk 0:01:25]}  Kc6 {[%clk 0:00:21]} 52. Rxb6+ {[%clk 0:01:25]}  Kxb6 {[%clk 0:00:21]} 1/2-1/2


[Site "https://www.chess.com"]

[Event "Titled Tuesday Blitz June 27 Late 2023"]
[White "Indjic, Aleksandar"]
[Black "Rustemov, Alexander"]
[WhiteFideId "911925"]
[BlackFideId "4119002"]
[WhiteElo "2965"]
[BlackElo "2893"]
[Result "1-0"]
[Round "11"]
[TimeControl "180+2"]
[Date "2023.06.27"]
[WhiteClock "0:01:04"]
[BlackClock "0:00:00"]
[Board "11"]

1. e4 {[%clk 0:03:00]}  e6 {[%clk 0:03:00]} 2. d4 {[%clk 0:03:01]}  d5 {[%clk 0:03:00]} 3. e5 {[%clk 0:03:01]}  c5 {[%clk 0:03:00]} 4. c3 {[%clk 0:03:02]}  Qb6 {[%clk 0:03:00]} 5. Nf3 {[%clk 0:03:01]}  Bd7 {[%clk 0:03:01]} 6. Be2 {[%clk 0:02:46]}  Bb5 {[%clk 0:03:00]} 7. O-O {[%clk 0:02:46]}  Bxe2 {[%clk 0:02:59]} 8. Qxe2 {[%clk 0:02:47]}  Qa6 {[%clk 0:03:00]} 9. Qd1 {[%clk 0:02:35]}  cxd4 {[%clk 0:03:00]} 10. cxd4 {[%clk 0:02:35]}  Bb4 {[%clk 0:03:00]} 11. h4 {[%clk 0:02:29]}  Ne7 {[%clk 0:02:57]} 12. h5 {[%clk 0:02:29]}  h6 {[%clk 0:02:57]} 13. a3 {[%clk 0:02:29]}  Nbc6 {[%clk 0:02:55]} 14. Be3 {[%clk 0:02:20]}  Rc8 {[%clk 0:02:50]} 15. g4 {[%clk 0:02:17]}  Ba5 {[%clk 0:02:46]} 16. Kg2 {[%clk 0:02:14]}  Qb5 {[%clk 0:02:37]} 17. b4 {[%clk 0:02:13]}  Bd8 {[%clk 0:02:26]} 18. Nc3 {[%clk 0:02:14]}  Qb6 {[%clk 0:02:18]} 19. Rc1 {[%clk 0:02:05]}  a6 {[%clk 0:02:11]} 20. Na4 {[%clk 0:02:00]}  Qa7 {[%clk 0:02:09]} 21. Nc5 {[%clk 0:02:00]}  b6 {[%clk 0:02:08]} 22. Nd3 {[%clk 0:02:00]}  Qb7 {[%clk 0:02:03]} 23. Qd2 {[%clk 0:01:59]}  Na7 {[%clk 0:01:54]} 24. Rxc8 {[%clk 0:01:56]}  Nexc8 {[%clk 0:01:49]} 25. a4 {[%clk 0:01:46]}  Be7 {[%clk 0:01:48]} 26. Rc1 {[%clk 0:01:40]}  Qd7 {[%clk 0:01:38]} 27. Qc2 {[%clk 0:01:35]}  Qb7 {[%clk 0:01:20]} 28. Nd2 {[%clk 0:01:22]}  Kd7 {[%clk 0:01:11]} 29. Nb3 {[%clk 0:01:22]}  Rd8 {[%clk 0:01:01]} 30. f4 {[%clk 0:01:19]}  Ke8 {[%clk 0:00:55]} 31. f5 {[%clk 0:01:19]}  Qd7 {[%clk 0:00:54]} 32. Nf4 {[%clk 0:01:17]}  exf5 {[%clk 0:00:44]} 33. gxf5 {[%clk 0:01:15]}  Qxa4 {[%clk 0:00:44]} 34. f6 {[%clk 0:01:13]}  gxf6 {[%clk 0:00:41]} 35. e6 {[%clk 0:01:13]}  fxe6 {[%clk 0:00:30]} 36. Nxe6 {[%clk 0:01:12]}  Nd6 {[%clk 0:00:13]} 37. Qg6+ {[%clk 0:01:05]}  Kd7 {[%clk 0:00:13]} 38. Nec5+ {[%clk 0:01:06]}  bxc5 {[%clk 0:00:10]} 39. Nxc5+ {[%clk 0:01:06]}  Kc7 {[%clk 0:00:07]} 40. Nxa4+ {[%clk 0:01:06]}  Nc4 {[%clk 0:00:08]} 41. Bf4+ {[%clk 0:01:04]}  Kb7 {[%clk 0:00:07]} 42. Qf7 {[%clk 0:01:03]}  Rd7 {[%clk 0:00:00]} 43. Nc5+ {[%clk 0:01:04]} 1-0


[Site "https://www.chess.com"]

[Event "Titled Tuesday Blitz June 27 Late 2023"]
[White "Ter-Sahakyan, Samvel"]
[Black "Fernandez Guillen, Ernesto J."]
[WhiteFideId "13302531"]
[BlackFideId "3512428"]
[WhiteElo "2891"]
[BlackElo "2722"]
[Result "0-1"]
[Round "11"]
[TimeControl "180+2"]
[Date "2023.06.27"]
[WhiteClock "0:00:00"]
[BlackClock "0:00:28"]
[Board "14"]

1. e4 {[%clk 0:02:59]}  e5 {[%clk 0:02:58]} 2. Nf3 {[%clk 0:02:59]}  Nc6 {[%clk 0:02:49]} 3. Bb5 {[%clk 0:02:59]}  f5 {[%clk 0:02:49]} 4. d3 {[%clk 0:02:56]}  fxe4 {[%clk 0:02:28]} 5. dxe4 {[%clk 0:02:57]}  Nf6 {[%clk 0:02:29]} 6. O-O {[%clk 0:02:55]}  d6 {[%clk 0:02:27]} 7. Nc3 {[%clk 0:02:42]}  Bg4 {[%clk 0:02:21]} 8. h3 {[%clk 0:02:38]}  Bh5 {[%clk 0:02:20]} 9. g4 {[%clk 0:02:34]}  Bg6 {[%clk 0:02:18]} 10. Ng5 {[%clk 0:02:26]}  Qd7 {[%clk 0:02:07]} 11. f4 {[%clk 0:02:11]}  exf4 {[%clk 0:01:43]} 12. Bxf4 {[%clk 0:02:11]}  O-O-O {[%clk 0:01:41]} 13. Bxc6 {[%clk 0:01:09]}  Qxc6 {[%clk 0:01:39]} 14. Qd4 {[%clk 0:01:04]}  d5 {[%clk 0:01:33]} 15. Be3 {[%clk 0:00:39]}  b6 {[%clk 0:01:33]} 16. Qa4 {[%clk 0:00:17]}  Qxa4 {[%clk 0:01:13]} 17. Nxa4 {[%clk 0:00:17]}  d4 {[%clk 0:01:13]} 18. e5 {[%clk 0:00:12]}  Ne4 {[%clk 0:00:30]} 19. Nxe4 {[%clk 0:00:08]}  Bxe4 {[%clk 0:00:31]} 20. Bg5 {[%clk 0:00:08]}  Re8 {[%clk 0:00:31]} 21. Rae1 {[%clk 0:00:05]}  Bxc2 {[%clk 0:00:31]} 22. b3 {[%clk 0:00:05]}  Bb4 {[%clk 0:00:31]} 23. Rc1 {[%clk 0:00:03]}  d3 {[%clk 0:00:31]} 24. Bf4 {[%clk 0:00:02]}  b5 {[%clk 0:00:27]} 25. Nb2 {[%clk 0:00:02]}  Ba3 {[%clk 0:00:28]} 26. Nxd3 {[%clk 0:00:00]}  Bxd3 {[%clk 0:00:28]} 0-1


[Site "https://www.chess.com"]